fUSD/lending_fUSD_20260401
["ID","MTS","AMOUNT","RATE_DAILY","PERIOD"]
[419242793,1775035842519,-150.0,0.00014247,2]
[419242794,1775035842528,-150.0,0.00014247,2]
[419242795,1775035842537,-150.0,0.00014247,2]
[419242796,1775035842547,-150.0,0.00014247,2]
[419242797,1775035842557,-5150.01,0.00014443,2]
[419242798,1775035842567,-1118.245,0.00014504,2]
[419242799,1775035842576,-9468.09787785,0.00014607,2]
[419242800,1775035842586,-452.86,0.00014623,2]
[419242801,1775035842595,-452.86,0.00014896,2]
[419242802,1775035842604,-300.0,0.00015,2]
[419242804,1775035842613,-2936.5,0.00015096,2]
[419242806,1775035842623,-452.86,0.0001517,2]
[419242808,1775035842632,-452.86,0.00015444,2]
[419242810,1775035842642,-500.0,0.00015501,2]
[419242812,1775035842651,-632.53007645,0.00015501,2]
[419242814,1775035842660,-500.0,0.00015501,2]
[419242815,1775035842670,-508.9635,0.000157,27]
[419242816,1775035842679,-452.86,0.00015718,2]
[419242817,1775035842689,-160.0,0.00015837,2]
[419242818,1775035842699,-160.0,0.00015837,2]
[419242819,1775035842708,-2936.5,0.00015851,2]
[419242820,1775035842718,-1667.81,0.00015879,2]
[419242821,1775035842728,-151.0,0.000159,2]
[419242822,1775035842738,-500.0,0.00015918,2]
[419242823,1775035842747,-5054.75480365,0.0001596,2]
[419242824,1775035842757,-452.91,0.00015992,2]
[419242825,1775035842766,-500.0,0.00016111,2]
[419242826,1775035842775,-500.0,0.00016111,2]
[419242827,1775035842784,-500.0,0.00016111,2]
[419242828,1775035842794,-500.0,0.00016161,2]
[419242829,1775035842803,-500.0,0.00016161,2]
[419242830,1775035842813,-500.0,0.00016161,2]
[419242831,1775035842822,-500.0,0.00016161,2]
[419242832,1775035842831,-500.0,0.00016161,2]
[419242833,1775035842841,-500.0,0.00016161,2]
[419242834,1775035842850,-500.0,0.00016161,2]
[419242835,1775035842859,-500.0,0.00016161,2]
[419242836,1775035842868,-500.0,0.00016161,2]
[419242837,1775035842878,-500.0,0.00016161,2]
[419242838,1775035842887,-500.0,0.00016161,2]
[419242839,1775035842896,-648.73576117,0.00016161,2]
[419242840,1775035842905,-500.0,0.00016164,2]
[419242841,1775035842915,-150.0,0.00016164,2]
[419242842,1775035842924,-500.0,0.00016164,2]
[419242843,1775035842933,-500.0,0.00016164,2]
[419242844,1775035842943,-150.0,0.00016164,2]
[419242845,1775035842952,-220.96690893,0.00016164,2]
[419242846,1775035842961,-500.0,0.00016164,2]
[419242847,1775035842970,-150.0,0.00016164,2]
[419242848,1775035842979,-500.0,0.00016164,2]
[419242849,1775035842989,-150.0,0.00016164,2]
[419242851,1775035842998,-500.0,0.00016164,2]
[419242852,1775035843007,-250.64656096,0.00016164,2]
[419242854,1775035843016,-500.0,0.00016164,2]
[419242855,1775035843025,-500.0,0.00016164,2]
[419242856,1775035843034,-500.0,0.00016164,2]
[419242857,1775035843044,-500.0,0.00016164,2]
[419242858,1775035843054,-233.58894836,0.00016164,2]
[419242859,1775035843064,-500.0,0.00016164,2]
[419242860,1775035843074,-500.0,0.00016164,2]
[419242861,1775035843083,-500.0,0.00016164,2]
[419242862,1775035843093,-500.0,0.00016164,2]
[419242863,1775035843102,-500.0,0.00016164,2]
[419242864,1775035843112,-363.12381504,0.00016164,2]
[419242865,1775035843122,-150.0,0.00016164,2]
[419242866,1775035843133,-207.81624386,0.00016164,2]
[419242867,1775035843143,-500.0,0.00016164,2]
[419242868,1775035843152,-500.0,0.00016164,2]
[419242869,1775035843162,-500.0,0.00016164,2]
[419242870,1775035843172,-587.70211459,0.00016164,2]
[419242871,1775035843183,-500.0,0.00016164,2]
[419242872,1775035843193,-500.0,0.00016164,2]
[419242873,1775035843203,-500.0,0.00016164,2]
[419242874,1775035843213,-150.0,0.00016164,2]
[419242875,1775035843223,-500.0,0.00016164,2]
[419242876,1775035843233,-150.0,0.00016164,2]
[419242877,1775035843242,-500.0,0.00016164,2]
[419242879,1775035843252,-150.0,0.00016164,2]
[419242880,1775035843262,-500.0,0.00016164,2]
[419242881,1775035843273,-285.29652053,0.00016164,2]
[419242882,1775035843283,-500.0,0.00016164,2]
[419242883,1775035843293,-500.0,0.00016164,2]
[419242884,1775035843303,-500.0,0.00016164,2]
[419242885,1775035843313,-158.91030595,0.00016164,2]
[419242886,1775035843323,-500.0,0.00016164,2]
[419242887,1775035843332,-500.0,0.00016164,2]
[419242888,1775035843343,-500.0,0.00016164,2]
[419242889,1775035843353,-500.0,0.00016164,2]
[419242890,1775035843362,-500.0,0.00016164,2]
[419242891,1775035843372,-500.0,0.00016164,2]
[419242892,1775035843382,-500.0,0.00016164,2]
[419242893,1775035843392,-500.0,0.00016164,2]
[419242894,1775035843402,-500.0,0.00016164,2]
[419242895,1775035843411,-500.0,0.00016164,2]
[419242896,1775035843420,-500.0,0.00016164,2]
[419242897,1775035843430,-699.0,0.00016164,2]
[419242898,1775035843440,-500.0,0.00016164,2]
[419242899,1775035843450,-699.0,0.00016164,2]
[419242900,1775035843460,-500.0,0.00016164,2]
[419242901,1775035843470,-396.68097798,0.00016164,2]
[419242902,1775035843480,-699.0,0.00016164,2]
[419242903,1775035843490,-699.0,0.00016164,2]
[419242904,1775035843501,-150.0,0.00016164,2]
[419242905,1775035843510,-699.0,0.00016164,2]
[419242906,1775035843521,-500.0,0.00016164,2]
[419242907,1775035843531,-500.0,0.00016164,2]
[419242908,1775035843540,-699.0,0.00016164,2]
[419242909,1775035843549,-500.0,0.00016164,2]
[419242910,1775035843560,-163.48039526,0.00016164,2]
[419242911,1775035843570,-500.0,0.00016164,2]
[419242912,1775035843580,-699.0,0.00016164,2]
[419242913,1775035843590,-436.48877466,0.00016164,2]
[419242914,1775035843600,-500.0,0.00016164,2]
[419242915,1775035843609,-500.0,0.00016164,2]
[419242916,1775035843619,-150.0,0.00016164,2]
[419242917,1775035843629,-699.0,0.00016164,2]
[419242918,1775035843945,-500.0,0.00016164,2]
[419242919,1775035843955,-500.0,0.00016164,2]
[419242920,1775035843966,-150.0,0.00016164,2]
[419242921,1775035843975,-699.0,0.00016164,2]
[419242922,1775035843985,-500.0,0.00016164,2]
[419242923,1775035843994,-500.0,0.00016164,2]
[419242924,1775035844004,-150.0,0.00016164,2]
[419242925,1775035844013,-699.0,0.00016164,2]
[419242926,1775035844023,-500.0,0.00016164,2]
[419242927,1775035844033,-150.0,0.00016164,2]
[419242928,1775035844043,-699.0,0.00016164,2]
[419242929,1775035844052,-150.0,0.00016164,2]
[419242930,1775035844062,-150.0,0.00016164,2]
[419242931,1775035844072,-500.0,0.00016164,2]
[419242932,1775035844081,-500.0,0.00016164,2]
[419242933,1775035844091,-699.0,0.00016164,2]
[419242934,1775035844100,-150.0,0.00016164,2]
[419242935,1775035844110,-166.03773935,0.00016164,2]
[419242936,1775035844120,-500.0,0.00016164,2]
[419242937,1775035844129,-500.0,0.00016164,2]
[419242938,1775035844138,-150.0,0.00016164,2]
[419242939,1775035844147,-699.0,0.00016164,2]
[419242940,1775035844156,-203.77883217,0.00016164,2]
[419242941,1775035844165,-528.88868282,0.00016164,2]
[419242942,1775035844175,-150.0,0.00016164,2]
[419242943,1775035844187,-699.0,0.00016164,2]
[419242944,1775035844196,-699.0,0.00016164,2]
[419242945,1775035844205,-699.0,0.00016164,2]
[419242946,1775035844216,-225.55855757,0.00016164,2]
[419242947,1775035844226,-699.0,0.00016164,2]
[419242948,1775035844236,-699.0,0.00016164,2]
[419242949,1775035844246,-699.0,0.00016164,2]
[419242950,1775035844255,-699.0,0.00016164,2]
[419242951,1775035844264,-699.0,0.00016164,2]
[419242952,1775035844274,-699.0,0.00016164,2]
[419242953,1775035844283,-699.0,0.00016164,2]
[419242954,1775035844293,-713.91512659,0.00016164,2]
[419242955,1775035844303,-500.0,0.00016164,2]
[419242956,1775035844312,-500.0,0.00016164,2]
[419242957,1775035844321,-500.0,0.00016164,2]
[419242958,1775035844331,-500.0,0.00016164,2]
[419242959,1775035844341,-502.75199427,0.00016164,2]
[419242960,1775035844350,-150.0,0.00016164,2]
[419242961,1775035844360,-150.0,0.00016164,2]
[419242962,1775035844369,-243.62629255,0.00016164,2]
[419242963,1775035844379,-500.0,0.00016164,2]
[419242964,1775035844389,-500.0,0.00016164,2]
[419242965,1775035844398,-500.0,0.00016164,2]
[419242966,1775035844408,-500.0,0.00016164,2]
[419242967,1775035844417,-500.0,0.00016164,2]
[419242968,1775035844427,-500.0,0.00016164,2]
[419242969,1775035844437,-500.0,0.00016164,2]
[419242970,1775035844447,-508.88121175,0.00016164,2]
[419242971,1775035844457,-500.0,0.00016164,2]
[419242972,1775035844466,-500.0,0.00016164,2]
[419242973,1775035844476,-500.0,0.00016164,2]
[419242974,1775035844485,-500.0,0.00016164,2]
[419242975,1775035844495,-500.0,0.00016164,2]
[419242976,1775035844504,-500.0,0.00016164,2]
[419242977,1775035844513,-500.0,0.00016164,2]
[419242978,1775035844522,-500.0,0.00016164,2]
[419242979,1775035844531,-500.0,0.00016164,2]
[419242980,1775035844540,-500.0,0.00016164,2]
[419242981,1775035844549,-500.0,0.00016164,2]
[419242982,1775035844559,-500.0,0.00016164,2]
[419242983,1775035844569,-500.0,0.00016164,2]
[419242984,1775035844578,-500.0,0.00016164,2]
[419242985,1775035844588,-537.28319898,0.00016164,2]
[419242986,1775035844597,-500.0,0.00016164,2]
[419242987,1775035844607,-500.0,0.00016164,2]
[419242988,1775035844617,-500.0,0.00016164,2]
[419242989,1775035844626,-500.0,0.00016164,2]
[419242990,1775035844636,-302.55639078,0.00016164,2]
[419242991,1775035844645,-500.0,0.00016164,2]
[419242992,1775035844655,-500.0,0.00016164,2]
[419242993,1775035844664,-500.0,0.00016164,2]
[419242994,1775035844673,-501.76096871,0.00016164,2]
[419242995,1775035844683,-500.0,0.00016164,2]
[419242996,1775035844693,-155.5470404,0.00016164,2]
[419242997,1775035844704,-500.0,0.00016164,2]
[419242998,1775035844714,-500.0,0.00016164,2]
[419242999,1775035844725,-500.0,0.00016164,2]
[419243000,1775035844735,-500.0,0.00016164,2]
[419243001,1775035844747,-500.0,0.00016164,2]
[419243002,1775035844757,-500.0,0.00016164,2]
[419243003,1775035844767,-329.21769099,0.00016164,2]
[419243004,1775035844776,-150.0,0.00016164,2]
[419243005,1775035844788,-500.0,0.00016173,2]
[419243006,1775035844797,-500.0,0.00016173,2]
[419243007,1775035844807,-1667.81,0.00016276,2]
[419243008,1775035844816,-450.0,0.00016329,2]
[419243009,1775035844825,-2936.5,0.00016606,2]
[419243010,1775035844834,-1667.81,0.00016673,2]
[419243011,1775035844843,-157.21,0.00016712,2]
[419243012,1775035844852,-273.88,0.00016777,2]
[419243013,1775035844861,-505.0,0.00016827,5]
[419243014,1775035844871,-158.53,0.00016846,2]
[419243015,1775035844880,-5000.0,0.00017,2]
[419243016,1775035844890,-10000.0,0.00017012,2]
[419243017,1775035844899,-1667.81,0.0001707,2]
[419243018,1775035844910,-649.8389,0.000171,32]
[419243019,1775035844920,-500.73578888,0.00017117,2]
[419243020,1775035844929,-500.0,0.00017117,2]
[419243021,1775035844938,-500.0,0.00017117,2]
[419243022,1775035844947,-500.0,0.00017117,2]
[419243023,1775035844956,-500.0,0.00017117,2]
[419243024,1775035844965,-160.0,0.00017118,7]
[419243025,1775035844975,-306.052036,0.00017118,7]
[419243026,1775035844984,-452.104073,0.00017118,7]
[419243027,1775035844993,-454.449532,0.0001713,7]
[419243028,1775035845003,-2936.5,0.00017361,2]
[419243029,1775035845012,-500.0,0.00017404,2]
[419243030,1775035845021,-1667.81,0.00017467,2]
[419243031,1775035845030,-500.0,0.00017479,2]
[419243032,1775035845039,-7142.78863235,0.00017506,2]
[419243033,1775035845049,-500.0,0.00017685,2]
[419243034,1775035845059,-627.00850068,0.00017685,2]
[419243035,1775035845068,-450.0,0.00017699,2]
[419243036,1775035845077,-9468.09787785,0.00017727,2]
[419243037,1775035845086,-1074.99402984,0.00017873,2]
[419243038,1775035845095,-4142.96185438,0.00017873,2]
[419243039,1775035845104,-1118.0,0.00017896,2]
[419243040,1775035845113,-417.343686,0.00017974,7]
[419243041,1775035845122,-206.567969,0.00017986,7]
[419243042,1775035845131,-161.0,0.0001808,2]
[419243043,1775035845141,-152.0,0.0001808,2]
[419243044,1775035845150,-161.0,0.0001808,2]
[419243045,1775035845159,-205.95837428,0.0001808,2]
[419243046,1775035845168,-152.0,0.0001808,2]
[419243047,1775035845178,-300.0,0.0001808,2]
[419243048,1775035845187,-152.0,0.0001808,2]
[419243049,1775035845196,-1524.0,0.0001808,2]
[419243050,1775035845205,-152.0,0.0001808,2]
[419243051,1775035845214,-152.0,0.0001808,2]
[419243052,1775035845223,-1524.0,0.0001808,2]
[419243053,1775035845232,-152.0,0.0001808,2]
[419243054,1775035845242,-1524.0,0.0001808,2]
[419243055,1775035845252,-1524.0,0.0001808,2]
[419243056,1775035845262,-152.0,0.0001808,2]
[419243057,1775035845271,-1524.0,0.0001808,2]
[419243058,1775035845281,-228.00689511,0.0001808,2]
[419243059,1775035845290,-1524.0,0.0001808,2]
[419243060,1775035845300,-153.0,0.0001808,2]
[419243061,1775035845310,-1524.0,0.0001808,2]
[419243062,1775035845319,-153.0,0.0001808,2]
[419243063,1775035845328,-1524.0,0.0001808,2]
[419243064,1775035845337,-153.0,0.0001808,2]
[419243065,1775035845346,-1524.0,0.0001808,2]
[419243066,1775035845356,-153.0,0.0001808,2]
[419243067,1775035845365,-1524.0,0.0001808,2]
[419243068,1775035845374,-1524.0,0.0001808,2]
[419243069,1775035845384,-1524.0,0.0001808,2]
[419243070,1775035845393,-1524.0,0.0001808,2]
[419243071,1775035845403,-153.0,0.0001808,2]
[419243072,1775035845413,-1524.0,0.0001808,2]
[419243073,1775035845423,-1524.0,0.0001808,2]
[419243074,1775035845432,-1524.0,0.0001808,2]
[419243075,1775035845441,-1524.0,0.0001808,2]
[419243076,1775035845451,-1524.0,0.0001808,2]
[419243077,1775035845460,-244.18218829,0.0001808,2]
[419243078,1775035845470,-1524.0,0.0001808,2]
[419243079,1775035845479,-1524.0,0.0001808,2]
[419243080,1775035845490,-1524.0,0.0001808,2]
[419243081,1775035845500,-2936.5,0.00018116,2]
[419243082,1775035845509,-1118.0,0.00018228,2]
[419243083,1775035845518,-356.03578514,0.00018233,2]
[419243084,1775035845528,-829.707,0.000186,37]
[419243085,1775035845538,-500.0,0.00018712,2]
[419243086,1775035845548,-1524.0,0.00018808,2]
[419243087,1775035845558,-1524.0,0.00018808,2]
[419243088,1775035845568,-1524.0,0.00018808,2]
[419243089,1775035845578,-1524.0,0.00018808,2]
[419243090,1775035845588,-1524.0,0.00018808,2]
[419243091,1775035845597,-1524.0,0.00018808,2]
[419243092,1775035845607,-1524.0,0.00018808,2]
[419243093,1775035845616,-1524.0,0.00018808,2]
[419243094,1775035845625,-1524.0,0.00018808,2]
[419243095,1775035845635,-1524.0,0.00018808,2]
[419243096,1775035845644,-1524.0,0.00018808,2]
[419243097,1775035845654,-1524.0,0.00018808,2]
[419243098,1775035845663,-1524.0,0.00018808,2]
[419243099,1775035845672,-1524.0,0.00018808,2]
[419243100,1775035845682,-1524.0,0.00018808,2]
[419243101,1775035845691,-1524.0,0.00018808,2]
[419243102,1775035845701,-1524.0,0.00018808,2]
[419243103,1775035845711,-1524.0,0.00018808,2]
[419243104,1775035845720,-1524.0,0.00018808,2]
[419243105,1775035845730,-1524.0,0.00018808,2]
[419243106,1775035845739,-1524.0,0.00018808,2]
[419243107,1775035845748,-1524.0,0.00018808,2]
[419243108,1775035845758,-1524.0,0.00018808,2]
[419243109,1775035845768,-1524.0,0.00018808,2]
[419243110,1775035845777,-1524.0,0.00018808,2]
[419243111,1775035845786,-1524.0,0.00018808,2]
[419243112,1775035845796,-1524.0,0.00018808,2]
[419243113,1775035845806,-1524.0,0.00018808,2]
[419243114,1775035845816,-1524.0,0.00018808,2]
[419243115,1775035845825,-1524.0,0.00018808,2]
[419243116,1775035845835,-1524.0,0.00018808,2]
[419243117,1775035845845,-1524.0,0.00018808,2]
[419243118,1775035845854,-1524.0,0.00018808,2]
[419243119,1775035845864,-1524.0,0.00018808,2]
[419243120,1775035845874,-1524.0,0.00018808,2]
[419243121,1775035845883,-1524.0,0.00018808,2]
[419243122,1775035845892,-1154.02182999,0.00018808,2]
[419243123,1775035845903,-500.41125099,0.00018873,2]
[419243124,1775035845912,-500.0,0.00018873,2]
[419243126,1775035845922,-500.0,0.00018873,2]
[419243127,1775035845932,-500.0,0.00018873,2]
[419243128,1775035845942,-244.41825373,0.00019178,2]
[419243129,1775035845951,-168.26,0.00019215,2]
[419243130,1775035845960,-500.37557038,0.00019477,2]
[419243131,1775035845969,-500.0,0.00019477,2]
[419243132,1775035845978,-275.71340123,0.00019477,2]
[419243133,1775035845987,-500.0,0.00019477,2]
[419243134,1775035845997,-217.018717,0.00019686,7]
[419243135,1775035846007,-5290.96,0.0002,30]
[419243136,1775035846016,-1059.3607,0.0002,42]
[419243137,1775035846025,-297.81404585,0.0002,20]
[419243138,1775035846035,-509.88873086,0.00020118,2]
[419243139,1775035846044,-342.86927072,0.00020118,2]
[419243140,1775035846054,-500.0,0.00020118,2]
[419243141,1775035846064,-500.0,0.00020118,2]
[419243142,1775035846074,-500.0,0.00020118,2]
[419243143,1775035846083,-500.0,0.00020118,2]
[419243144,1775035846093,-500.0,0.00020118,2]
[419243145,1775035846103,-500.0,0.00020118,2]
[419243146,1775035846112,-312.57026801,0.00020118,2]
[419243147,1775035846122,-500.0,0.00020118,2]
[419243148,1775035846131,-505.0,0.00020543,8]
[419243150,1775035846141,-1000.0,0.00020666,2]
[419243151,1775035846150,-298.21038318,0.00020666,2]
[419243152,1775035846161,-1000.0,0.00020666,2]
[419243153,1775035846170,-367.40868416,0.00020666,2]
[419243154,1775035846180,-9468.09787785,0.00020848,2]
[419243155,1775035846189,-300.0,0.00021,2]
[419243156,1775035846199,-1500.0,0.00021214,2]
[419243157,1775035846208,-1500.0,0.00021214,2]
[419243158,1775035846218,-18232.1,0.00021384,2]
[419243159,1775035846227,-1352.5799,0.000215,47]
[419243160,1775035846237,-160.0,0.00021644,7]
[419243161,1775035846246,-500.0,0.00021644,7]
[419243162,1775035846256,-500.0,0.00021644,7]
[419243163,1775035846265,-156.78867168,0.00021644,7]
[419243164,1775035846275,-330.83967565,0.00021644,7]
[419243165,1775035846285,-500.0,0.00021644,7]
[419243166,1775035846295,-500.0,0.00021644,7]
[419243167,1775035846305,-500.0,0.00021644,7]
[419243168,1775035846315,-500.0,0.00021644,7]
[419243169,1775035846325,-500.0,0.00021644,7]
[419243170,1775035846335,-500.0,0.00021644,7]
[419243171,1775035846344,-500.0,0.00021644,7]
[419243172,1775035846355,-500.0,0.00021644,7]
[419243173,1775035846366,-500.0,0.00021644,7]
[419243174,1775035846377,-500.0,0.00021644,7]
[419243175,1775035846386,-500.0,0.00021644,7]
[419243176,1775035846396,-192.86328768,0.00021644,7]
[419243177,1775035846406,-500.0,0.00021644,7]
[419243178,1775035846416,-150.0,0.00021644,7]
[419243179,1775035846426,-500.0,0.00021644,7]
[419243180,1775035846436,-150.0,0.00021644,7]
[419243181,1775035846446,-500.0,0.00021644,7]
[419243182,1775035846456,-150.0,0.00021644,7]
[419243183,1775035846466,-178.86340843,0.00021644,7]
[419243184,1775035846475,-500.0,0.00021644,7]
[419243185,1775035846485,-500.0,0.00021644,7]
[419243186,1775035846494,-500.0,0.00021644,7]
[419243187,1775035846504,-156.13980161,0.00021644,7]
[419243188,1775035846514,-160.0,0.00021644,7]
[419243189,1775035846524,-2000.0,0.00021761,2]
[419243190,1775035846534,-1500.0,0.00021946,2]
[419243191,1775035846544,-153.0,0.00022,2]
[419243192,1775035846554,-654.0,0.00022,2]
[419243193,1775035846563,-993.0,0.00022,2]
[419243194,1775035846573,-3398.0,0.00022,2]
[419243195,1775035846582,-908.0,0.00022,2]
[419243196,1775035846592,-375.0,0.00022,2]
[419243197,1775035846602,-7142.78863235,0.00022126,2]
[419243198,1775035846612,-2000.0,0.000222,2]
[419243199,1775035846621,-160.0,0.000223,7]
[419243200,1775035846631,-2500.0,0.00022309,2]
[419243201,1775035846641,-200.0,0.00022413,2]
[419243202,1775035846650,-1910.95,0.00022427,30]
[419243203,1775035846660,-382.65541513,0.00022506,2]
[419243204,1775035846669,-1379.93134742,0.00022857,2]
[419243205,1775035846679,-500.0,0.00022877,2]
[419243206,1775035846688,-1726.9589,0.000229,52]
[419243207,1775035846697,-996.78344368,0.00022979,2]
[419243208,1775035846706,-154.66442286,0.00023,2]
[419243209,1775035846716,-654.0,0.00023,2]
[419243210,1775035846726,-993.0,0.00023,2]
[419243211,1775035846735,-3398.0,0.00023,2]
[419243212,1775035846744,-908.0,0.00023,2]
[419243213,1775035846754,-375.0,0.00023,2]
[419243214,1775035846763,-9468.09787785,0.00023968,2]
[419243215,1775035846773,-654.0,0.00024,2]
[419243216,1775035846782,-993.0,0.00024,2]
[419243217,1775035846791,-13.24148599,0.00024,2]
[419243218,1775035847245,-1524.0,0.0001808,2]
[419243219,1775035847255,-323.0,0.00022,2]
[419243220,1775035847264,-3384.75851401,0.00024,2]
[419243221,1775035847274,-908.0,0.00024,2]
[419243222,1775035847283,-375.0,0.00024,2]
[419243223,1775035847292,-505.0,0.00024259,11]
[419243224,1775035847301,-182.03311036,0.00024324,2]
[419243225,1775035847311,-151.0,0.00024376,2]
[419243226,1775035847321,-194.71896081,0.00024376,2]
[419243227,1775035847331,-2204.9619,0.000244,57]
[419243228,1775035847340,-1040.21,0.00024452,2]
[419243229,1775035847349,-1040.21,0.00024452,2]
[419243230,1775035847360,-1040.21,0.00024452,2]
[419243231,1775035847370,-1040.21,0.00024452,2]
[419243232,1775035847380,-1040.21,0.00024452,2]
[419243233,1775035847390,-1040.21,0.00024452,2]
[419243234,1775035847399,-1040.21,0.00024452,2]
[419243235,1775035847409,-1842.15,0.00024452,2]
[419243236,1775035847419,-3378.866,0.000245,7]
[419243237,1775035847428,-169.22,0.000245,7]
[419243238,1775035847438,-2000.0,0.000246,2]
[419243239,1775035847447,-236.26,0.00024658,2]
[419243240,1775035847456,-150.0,0.00024658,2]
[419243241,1775035847466,-757.0,0.00024744,5]
[419243242,1775035847475,-508.0837209,0.00024836,2]
[419243243,1775035847484,-474.15,0.00024855,60]
[419243244,1775035847493,-150.0,0.00024855,2]
[419243245,1775035847502,-1742.05573562,0.000249,2]
[419243246,1775035847514,-1352.0,0.000249,2]
[419243247,1775035868489,-500.0,8.265e-05,2]
[419243248,1775035868523,-1229.31217867,8.265e-05,2]
[419243249,1775035868551,-500.0,8.265e-05,2]
[419243250,1775035868582,-1229.31217867,8.265e-05,2]
[419243251,1775035868611,-500.0,8.265e-05,2]
[419243252,1775035868644,-853.44910665,8.265e-05,2]
[419243253,1775035868749,-375.86307202,8.265e-05,2]
[419243255,1775035875040,-500.0,8.265e-05,2]
[419243256,1775035875076,-1229.31217867,8.265e-05,2]
[419243257,1775035875110,-1229.31217867,8.265e-05,2]
[419243258,1775035875137,-500.0,8.265e-05,2]
[419243259,1775035875170,-1229.31217867,8.265e-05,2]
[419243260,1775035875198,-222.35417483,8.265e-05,2]
[419243261,1775035875310,-179.42857832,8.265e-05,2]
[419243263,1775035919120,1060.0,7.958e-05,2]
[419243264,1775035921490,1000.0,8.21e-05,2]
[419243265,1775035928087,3356.87,7.945e-05,2]
[419243266,1775035984607,298.71,7.765e-05,2]
[419243267,1775035989512,4446.348316,7.945e-05,2]
[419243268,1775036047210,382.94,7.709e-05,2]
[419243269,1775036047656,4617.07,7.945e-05,2]
[419243270,1775036047678,5000.01,7.945e-05,2]
[419243271,1775036047700,5000.01,7.945e-05,2]
[419243272,1775036047723,5170.957907,7.945e-05,2]
[419243273,1775036053108,-300.0,8.265e-05,2]
[419243274,1775036053136,-268.0,8.265e-05,2]
[419243275,1775036053167,-89626.7684,8.266e-05,2]
[419243276,1775036053196,-800.0,8.473e-05,2]
[419243277,1775036053223,-8505.2316,8.473e-05,2]
[419243279,1775036191723,-264.0,8e-05,2]
[419243280,1775036236711,700.0,7.709e-05,2]
[419243282,1775036306625,871.93,7.404e-05,2]
[419243283,1775036369059,-250.0,8.053e-05,2]
[419243284,1775036369087,-265.0,8.053e-05,2]
[419243285,1775036369115,-229.60070423,8.105e-05,2]
[419243286,1775036369143,-250.0,8.165e-05,2]
[419243287,1775036369171,-300.0,8.177e-05,2]
[419243288,1775036369199,-4601.573207,8.178e-05,2]
[419243289,1775036369227,-151.93152808,8.265e-05,2]
[419243290,1775036369256,-2207.22,8.278e-05,2]
[419243291,1775036377720,4744.67456069,8.177e-05,2]
[419243292,1775036403849,-3000.0,8.177e-05,2]
[419243293,1775036426790,-4309.75289906,8.105e-05,2]
[419243294,1775036426819,-95.67911121,8.177e-05,2]
[419243295,1775036426848,-250.0,8.24e-05,2]
[419243296,1775036429275,1400.0,7.931e-05,2]
[419243297,1775036432398,-4000.0,8.105e-05,2]
[419243298,1775036432902,-2564.79442548,8.105e-05,2]
[419243299,1775036435794,-5000.0,8.303e-05,2]
[419243302,1775036616607,310.93,7.794e-05,2]
[419243303,1775036622082,165.0,6.356e-05,2]
[419243304,1775036622317,154.0,6.356e-05,2]
[419243305,1775036622543,154.0,6.356e-05,2]
[419243306,1775036622767,154.0,6.356e-05,2]
[419243307,1775036623004,154.0,6.356e-05,2]
[419243308,1775036623244,154.0,6.356e-05,2]
[419243309,1775036623465,154.0,6.356e-05,2]